bitfinex-derivatives/quotes_SOLF0:USTF0_20251209
["timestamp","ask_amount","ask_price","bid_price","bid_amount"]
[1765322537116,0.05366638,138.13,138.1,3.37526379]
[1765322538113,0.05366638,138.13,138.1,9.89166379]
[1765322538415,0.05366638,138.13,138.11,3.32]
[1765322539302,0.05366638,138.13,138.12,9.8355]
[1765322541216,8.0431,138.18,138.14,3.32]
[1765322542109,8.0431,138.18,138.15,3.32]
[1765322542313,8.0431,138.18,138.15,3.37409951]
[1765322542314,0.04425303,138.18,138.15,3.37409951]
[1765322543012,0.04425303,138.18,138.15,9.88809951]
[1765322543214,0.04425303,138.18,138.16,3.32]
[1765322550222,1.62425303,138.18,138.15,3.18409951]
[1765322551227,1.58,138.17,138.15,3.18409951]
[1765322552628,8.0932,138.17,138.15,3.18409951]
[1765322553229,8.0932,138.17,138.15,0.05409951]
[1765322553230,6.5136,138.16,138.15,0.05409951]
[1765322556721,2.56433674,138.17,138.15,3.18409951]
[1765322557429,8.13735303,138.18,138.15,3.18409951]
[1765322558133,0.04425303,138.18,138.15,3.18409951]
[1765322559831,0.04425303,138.18,138.17,9.6431]
[1765322560633,6.5103,138.23,138.2,3.13]
[1765322561628,1.63,138.22,138.2,0.05124239]
[1765322561835,6.5103,138.23,138.2,3.18124239]
[1765322562034,6.5103,138.23,138.21,3.13]
[1765322562232,4.19433674,138.27,138.21,3.13]
[1765322562440,2.56433674,138.29,138.21,3.13]
[1765322562739,1.63,138.35,138.27,104.3684]
[1765322562932,1.63,138.35,138.29,3.13]
[1765322563126,1.63,138.35,138.28,61.54]
[1765322563127,1.63,138.35,138.31,3.13]
[1765322565740,5.9928816,138.37,138.31,3.13]
[1765322566337,7.6228816,138.37,138.31,3.13]
[1765322567344,8.1344,138.36,138.31,3.13]
[1765322567747,1.63,138.36,138.31,3.13]
[1765322568045,1.63,138.36,138.32,3.13]
[1765322570739,1.63,138.36,138.33,3.13]
[1765322570946,3.42854486,138.37,138.33,3.18014627]
[1765322571337,3.42854486,138.37,138.34,3.13]
[1765322572452,1.63,138.36,138.33,0.05014627]
[1765322573361,1.63,138.36,138.33,3.18014627]
[1765322575059,3.42854486,138.37,138.35,3.13]
[1765322578656,3.42854486,138.37,138.36,3.13]
[1765322579158,3.33,138.41,138.38,3.19]
[1765322579348,3.33,138.41,138.38,3.24284862]
[1765322579751,3.33,138.41,138.38,9.74604862]
[1765322580052,3.33,138.42,138.39,3.19]
[1765322584057,3.33,138.44,138.39,6.5027]
[1765322584260,3.33,138.44,138.4,0.04753092]
[1765322585455,9.8305,138.44,138.4,0.04753092]
[1765322585660,3.33,138.43,138.4,0.04753092]
[1765322586349,3.33,138.46,138.41,3.19]
[1765322586756,3.33,138.46,138.4,61.50753092]
[1765322586964,3.33,138.46,138.4,64.69753092]
[1765322587463,3.33,138.44,138.4,3.23753092]
[1765322587659,3.33,138.44,138.41,0.04721048]
[1765322587864,3.33,138.44,138.41,0.05101814]
[1765322589363,9.8305,138.44,138.41,3.24101814]
[1765322589957,3.28,138.43,138.41,3.24101814]
[1765322590267,9.7811,138.43,138.41,0.05101814]
[1765322590564,3.28,138.42,138.41,0.05101814]
[1765322593164,3.28,138.4,138.37,3.19]
[1765322594067,3.32715857,138.4,138.37,3.23937934]
[1765322594271,3.32715857,138.4,138.37,9.74307934]
[1765322594469,0.04715857,138.4,138.38,3.19]
[1765322595465,0.04715857,138.4,138.38,9.6932]
[1765322595675,0.04715857,138.4,138.39,3.19]
[1765322596564,0.04715857,138.4,138.38,9.6932]
[1765322598275,3.32715857,138.4,138.37,0.04937934]
[1765322598670,3.32715857,138.4,138.37,3.23937934]
[1765322599275,0.04715857,138.4,138.37,3.23937934]
[1765322599477,0.04715857,138.4,138.39,9.6928]
[1765322599683,3.28,138.44,138.4,3.19]
[1765322600177,3.28,138.44,138.4,9.692]
[1765322600375,3.28,138.44,138.41,3.19]
[1765322600569,9.7805,138.44,138.41,3.2434342]
[1765322604477,9.7809,138.43,138.41,0.0534342]
[1765322604666,3.28,138.42,138.41,0.0534342]
[1765322607085,3.28,138.44,138.41,0.0534342]
[1765322607778,9.7807,138.44,138.41,0.0534342]
[1765322607982,3.28,138.43,138.41,0.0534342]
[1765322610475,9.781,138.43,138.41,0.0534342]
[1765322611477,9.5514,138.42,138.41,0.0534342]
[1765322613787,9.5526,138.4,138.34,3.3]
[1765322614176,3.05,138.38,138.34,3.3]
[1765322614487,3.05,138.41,138.34,3.3]
[1765322614680,0.05121761,138.39,138.36,0.04741161]
[1765322614886,0.05121761,138.39,138.36,3.34741161]
[1765322615578,0.05121761,138.39,138.36,9.85121161]
[1765322616279,3.10121761,138.39,138.36,9.85121161]
[1765322617890,3.10121761,138.39,138.37,3.3]
[1765322618588,3.05,138.38,138.36,0.04741161]
[1765322619595,9.5533,138.38,138.36,0.04741161]
[1765322619789,3.05,138.37,138.36,0.04741161]
[1765322620191,9.5537,138.37,138.36,0.04741161]
[1765322621691,3.05,138.34,138.31,9.8065]
[1765322622789,3.10113148,138.34,138.31,9.8528402]
[1765322624197,3.10113148,138.34,138.32,3.3]
[1765322625296,0.05113148,138.34,138.32,9.806]
[1765322635008,3.05,138.36,138.35,0.04738742]
[1765322635715,9.5542,138.36,138.35,0.04738742]
[1765322640113,6.5042,138.36,138.35,0.04738742]
[1765322640923,6.5042,138.36,138.35,3.40738742]
[1765322641423,6.5042,138.36,138.35,0.04738742]
[1765322643322,9.5742,138.36,138.35,0.04738742]
[1765322644421,6.5042,138.36,138.35,0.04738742]
[1765322644822,6.5042,138.36,138.35,3.40738742]
[1765322645129,6.55112277,138.38,138.35,3.40738742]
[1765322646525,0.04742277,138.38,138.35,3.40738742]
[1765322648328,0.04742277,138.38,138.35,9.91198742]
[1765322648526,0.04742277,138.38,138.36,3.36]
[1765322654639,3.12,138.37,138.35,0.04738742]
[1765322655137,3.12,138.37,138.35,3.19738742]
[1765322655438,6.55072277,138.38,138.35,3.19738742]
[1765322655439,9.67072277,138.38,138.35,3.19738742]
[1765322655638,6.55072277,138.38,138.35,3.19738742]
[1765322656233,9.67072277,138.38,138.35,3.19738742]
[1765322659536,9.67072277,138.38,138.29,3.15]
[1765322659537,3.12,138.35,138.29,3.15]
[1765322659736,3.12,138.35,138.3,3.15]
[1765322659937,5.67220925,138.34,138.3,3.15]
[1765322660440,6.5056,138.33,138.3,3.15]
[1765322660642,6.5544253,138.33,138.3,3.20163628]
[1765322661353,9.6744253,138.33,138.3,3.20163628]
[1765322661551,0.0488253,138.33,138.31,3.15]
[1765322661946,3.12,138.31,138.3,0.05163628]
[1765322662244,5.67220925,138.31,138.3,0.05163628]
[1765322662752,3.12,138.3,138.25,3.15]
[1765322663539,9.67485663,138.29,138.26,0.05376271]
[1765322663744,9.67485663,138.29,138.26,3.20376271]
[1765322665638,0.04715663,138.29,138.26,3.20376271]
[1765322666045,0.04715663,138.29,138.26,5.75597196]
[1765322666246,0.04715663,138.29,138.27,3.15]
[1765322666442,3.12,138.34,138.28,64.61]
[1765322666443,9.6255,138.34,138.28,64.61]
[1765322666643,9.6255,138.34,138.3,3.15]
[1765322667044,6.5057,138.33,138.3,3.15]
[1765322667246,9.6257,138.33,138.3,3.15]
[1765322667446,9.6257,138.33,138.27,3.15]
[1765322667447,3.12,138.32,138.27,3.15]
[1765322667654,3.12,138.32,138.3,0.04728551]
[1765322668543,9.6265,138.31,138.3,0.04728551]
[1765322669556,0.04734751,138.33,138.3,3.08728551]
[1765322669754,3.12734751,138.33,138.3,3.08728551]
[1765322670542,9.63314751,138.33,138.3,3.08728551]
[1765322670947,6.55314751,138.33,138.3,3.08728551]
[1765322673044,3.08,138.31,138.3,0.04728551]
[1765322679455,9.5865,138.31,138.3,0.04728551]
[1765322682457,3.08,138.29,138.24,3.04]
[1765322683057,6.5084,138.27,138.24,3.04]
[1765322683461,6.5603417,138.27,138.24,3.09084394]
[1765322687165,101.2581,138.25,138.2,3.04]
[1765322687369,3.08,138.26,138.2,3.04]
[1765322688168,0.05220756,138.24,138.22,0.04995744]
[1765322688367,0.05220756,138.24,138.22,3.08995744]
[1765322689772,9.64220756,138.24,138.22,0.04995744]
[1765322689968,101.2819,138.22,138.16,222.83105305]
[1765322690171,3.08,138.2,138.16,3.04]
[1765322690672,9.5921,138.2,138.16,3.04]
[1765322690864,6.5121,138.2,138.16,3.04]
[1765322691179,0.04709132,138.19,138.17,3.08852189]
[1765322694978,0.04709132,138.19,138.18,3.04]
[1765322697367,9.5898,138.25,138.18,3.04]
[1765322697569,3.08,138.24,138.2,3.04]
[1765322697765,9.5899,138.24,138.2,3.04]
[1765322698472,0.04596133,138.23,138.21,3.09257498]
[1765322702380,3.15596133,138.23,138.21,0.05257498]
[1765322702582,3.15596133,138.23,138.21,3.12257498]
[1765322703481,0.04596133,138.23,138.21,3.12257498]
[1765322707890,0.04596133,138.23,138.21,9.63377498]
[1765322708081,0.04596133,138.23,138.22,3.07]
[1765322710390,0.04596133,138.23,138.22,9.5808]
[1765322711695,3.33596133,138.23,138.21,0.05257498]
[1765322713278,3.33596133,138.23,138.18,61.5]
[1765322713693,3.29,138.22,138.18,61.5]
[1765322713897,3.29,138.22,138.18,64.63]
[1765322714302,3.29,138.22,138.19,0.0532112]
[1765322715402,3.29,138.2,138.19,0.0532112]
[1765322717197,3.29,138.22,138.19,3.1832112]
[1765322717708,3.29,138.21,138.19,0.0532112]
[1765322725307,0.04596133,138.23,138.19,3.1832112]
[1765322726104,0.04596133,138.23,138.2,3.13]
[1765322726604,0.04596133,138.23,138.2,9.6415]
[1765322726810,0.04596133,138.23,138.21,3.13]
[1765322727612,0.04596133,138.23,138.21,9.6413]
[1765322728015,0.04596133,138.23,138.22,3.13]
[1765322732209,9.7384,138.28,138.24,3.17]
[1765322732409,5.32990028,138.29,138.24,3.17]
[1765322732410,3.23,138.3,138.24,3.17]
[1765322733315,0.05480456,138.28,138.26,3.22108395]
[1765322734217,0.05480456,138.28,138.26,9.72998395]
[1765322734423,0.05480456,138.28,138.27,3.17]
[1765322737320,3.28480456,138.28,138.26,0.05108395]
[1765322738119,3.23,138.27,138.26,0.05108395]
[1765322739925,0.05480456,138.28,138.26,0.05108395]
[1765322740136,3.28480456,138.28,138.26,0.05108395]
[1765322740823,0.05480456,138.28,138.26,3.22108395]
[1765322741023,3.28480456,138.28,138.26,3.22108395]
[1765322742424,3.28480456,138.28,138.26,0.05108395]
[1765322742629,0.05480456,138.28,138.26,3.22108395]
[1765322743230,3.28480456,138.28,138.26,0.05108395]
[1765322757931,3.99615607,138.35,138.28,3.17]
[1765322758239,3.23,138.33,138.28,3.17]
[1765322759135,3.36448979,138.32,138.29,3.3677244]
[1765322759438,3.36448979,138.32,138.29,0.0477244]
[1765322759638,3.31,138.29,138.23,3.32]
[1765322759833,3.31,138.29,138.21,61.48]
[1765322760435,3.31,138.26,138.22,3.32]
[1765322760634,0.05179637,138.25,138.23,0.05401979]
[1765322760839,0.05179637,138.25,138.23,3.37401979]
[1765322761531,0.05179637,138.25,138.24,6.5097]
[1765322764742,0.05179637,138.25,138.24,9.8297]
[1765322766436,3.31,138.29,138.26,3.32]
[1765322766640,3.31,138.33,138.27,64.8]
[1765322767434,3.36361892,138.31,138.29,0.05011874]
[1765322772747,9.87021892,138.31,138.29,0.05011874]
[1765322772950,3.12,138.3,138.29,0.05011874]
[1765322773155,3.12,138.29,138.22,3.03]
[1765322773450,3.12,138.28,138.22,3.03]
[1765322773952,3.12,138.28,138.23,3.03]
[1765322774453,3.12,138.28,138.21,77.48591417]
[1765322774454,0.0504962,138.27,138.25,3.03]
[1765322775655,0.0504962,138.27,138.26,3.03]
[1765322775955,3.1704962,138.27,138.24,3.07979614]
[1765322776852,3.1704962,138.27,138.24,0.04979614]
[1765322778561,9.6789962,138.27,138.24,0.04979614]
[1765322778756,3.12,138.26,138.24,0.04979614]
[1765322781657,0.0504962,138.27,138.24,3.07979614]
[1765322781863,3.1704962,138.27,138.24,3.07979614]
[1765322783664,3.1704962,138.27,138.24,0.04979614]
[1765322787169,9.6790962,138.27,138.24,0.04979614]
[1765322787363,3.12,138.26,138.24,0.04979614]
[1765322788864,9.6294,138.25,138.24,0.04979614]
[1765322789055,3.04,138.24,138.19,3.03]
[1765322790161,0.05206559,138.23,138.2,3.29237922]
[1765322790360,3.09206559,138.23,138.2,3.29237922]
[1765322790561,9.60286559,138.23,138.2,3.29237922]
[1765322790968,3.04,138.22,138.2,3.29237922]
[1765322792670,9.5508,138.22,138.2,0.05237922]
[1765322793067,3.04,138.21,138.2,0.05237922]
[1765322797064,9.5508,138.22,138.2,0.05237922]
[1765322798871,3.04,138.21,138.2,0.05237922]
[1765322800374,9.5513,138.21,138.2,0.05237922]
[1765322807086,9.5522,138.19,138.18,61.48]
[1765322808378,9.5527,138.18,138.17,0.04997782]
[1765322808886,9.60093988,138.2,138.17,3.28997782]
[1765322809092,3.08883988,138.2,138.17,3.28997782]
[1765322810184,3.08883988,138.2,138.17,0.04997782]
[1765322810588,3.04,138.18,138.17,0.04997782]
[1765322811480,3.04,138.19,138.17,3.28997782]
[1765322811686,3.04,138.19,138.17,0.04997782]
[1765322812085,3.04,138.19,138.17,3.28997782]
[1765322812281,3.04,138.19,138.17,0.04997782]
[1765322812486,0.04883988,138.2,138.17,3.28997782]
[1765322813583,0.04883988,138.2,138.18,3.24]
[1765322814190,0.04883988,138.2,138.18,64.76]
[1765322814390,0.04883988,138.2,138.19,3.24]
[1765322819688,3.25883988,138.2,138.17,3.25997782]
[1765322819884,0.04883988,138.2,138.17,3.25997782]
[1765322821390,3.25883988,138.2,138.17,3.25997782]
[1765322821791,0.04883988,138.2,138.17,9.77307782]
[1765322821990,0.04883988,138.2,138.18,3.21]
[1765322823495,0.04883988,138.2,138.19,3.21]
[1765322824498,101.2535,138.26,138.19,3.21]
[1765322824499,3.21,138.26,138.19,3.21]
[1765322824893,6.5099,138.24,138.19,3.21]
[1765322825095,9.7199,138.24,138.19,3.21]
[1765322825494,0.04594745,138.23,138.21,3.21]
[1765322828495,0.04594745,138.23,138.22,3.34]
[1765322837310,3.23,138.31,138.23,3.34]
[1765322838206,0.05539294,138.28,138.26,3.39522068]
[1765322838506,0.05539294,138.28,138.26,64.89522068]
[1765322840117,3.23,138.27,138.26,61.55522068]
[1765322840713,9.7384,138.27,138.26,61.55522068]
[1765322842614,0.05539294,138.28,138.27,3.34]
[1765322849227,3.33,138.34,138.27,3.34]
[1765322850230,0.04804338,138.32,138.3,3.15]
[1765322860340,167.33099142,138.39,138.32,3.15]
[1765322860341,9.8332,138.39,138.32,3.15]
[1765322860534,9.8332,138.39,138.33,3.15]
[1765322861132,0.04995224,138.37,138.35,3.19850516]
[1765322861534,3.37995224,138.37,138.35,3.19850516]
[1765322861743,3.37995224,138.37,138.35,0.04850516]
[1765322863434,6.5042,138.36,138.35,0.04850516]
[1765322863634,9.8342,138.36,138.35,0.04850516]
[1765322864140,3.33,138.36,138.35,0.04850516]
[1765322867546,3.37995224,138.37,138.35,3.19850516]
[1765322868036,3.37995224,138.37,138.35,0.04850516]
[1765322869546,3.33,138.36,138.35,0.04850516]
[1765322870648,0.04995224,138.37,138.35,3.19850516]
[1765322873454,0.04995224,138.37,138.35,9.70310516]
[1765322873654,0.04995224,138.37,138.36,3.15]
[1765322880351,0.04995224,138.37,138.36,9.6542]
[1765322880948,3.07995224,138.37,138.35,0.04850516]
[1765322881455,3.07995224,138.37,138.31,3.06]
[1765322881649,3.03,138.36,138.26,3.06]
[1765322881853,3.03,138.33,138.26,3.06]
[1765322882056,3.03,138.33,138.25,61.44]
[1765322882057,3.03,138.3,138.25,61.44]
[1765322882251,3.03,138.3,138.25,64.5]
[1765322882450,0.04908843,138.29,138.26,0.051291]
[1765322882656,3.07908843,138.29,138.26,3.111291]
[1765322883644,0.04908843,138.29,138.26,9.620091]
[1765322883846,0.04908843,138.29,138.27,3.06]
[1765322884959,3.07908843,138.29,138.26,6.560091]
[1765322885148,3.07908843,138.29,138.26,3.111291]
[1765322886159,0.04908843,138.29,138.26,3.111291]
[1765322888655,0.04908843,138.29,138.28,3.06]
[1765322890267,5.58454892,138.35,138.29,3.35]
[1765322890459,3.03,138.35,138.31,3.35]
[1765322891264,0.05536015,138.34,138.32,3.40472299]
[1765322894466,3.20536015,138.34,138.32,0.05472299]
[1765322898562,0.05536015,138.34,138.32,3.40472299]
[1765322901967,3.20536015,138.34,138.32,3.40472299]
[1765322902775,3.20536015,138.34,138.32,0.05472299]
[1765322903471,3.20536015,138.34,138.32,3.40472299]
[1765322903674,0.05536015,138.34,138.32,3.40472299]
[1765322905674,3.15,138.39,138.32,3.40472299]
[1765322906267,6.5033,138.38,138.34,3.35]
[1765322906875,0.04611269,138.37,138.36,3.35]
[1765322911378,3.15,138.41,138.36,3.35]
[1765322912581,3.15,138.41,138.37,3.02]
[1765322914784,3.15,138.41,138.38,3.02]
[1765322914985,12.19564892,138.43,138.38,3.07536684]
[1765322915187,5.69454892,138.43,138.38,3.07536684]
[1765322915484,3.14,138.43,138.38,3.07536684]
[1765322916488,3.14,138.43,138.39,3.02]
[1765322917886,3.14,138.43,138.39,9.5227]
[1765322918087,3.14,138.43,138.39,3.02]
[1765322919497,3.14,138.42,138.39,3.02]
[1765322919800,3.14,138.42,138.38,3.07536684]
[1765322920490,3.14,138.41,138.38,3.07536684]
[1765322920696,3.14,138.42,138.38,3.07536684]
[1765322923491,3.14,138.41,138.38,3.07536684]
[1765322924097,9.6419,138.41,138.38,3.07536684]
[1765322928101,3.14,138.41,138.38,3.07536684]
[1765322928601,101.1151,138.45,138.38,3.07536684]
[1765322928602,3.14,138.45,138.38,3.07536684]
[1765322929104,3.14,138.45,138.4,3.02]
[1765322929295,3.14,138.45,138.42,3.02]
[1765322930499,3.14,138.48,138.42,3.02]
[1765322930707,3.14,138.48,138.45,3.02]
[1765322931002,3.14,138.48,138.44,0.04632504]
[1765322931395,3.14,138.46,138.44,0.04632504]
[1765322931891,2.55454892,138.45,138.39,6.5028]
[1765322932093,2.55454892,138.43,138.4,3.02]
[1765322932396,3.14,138.42,138.4,3.02]
[1765322932805,3.14,138.44,138.4,3.02]
[1765322933007,0.05018177,138.43,138.42,3.02]
[1765322933199,0.04690505,138.44,138.42,3.02]
[1765322935803,0.04690505,138.44,138.42,9.5214]
[1765322936109,0.04690505,138.44,138.43,3.02]
[1765322939509,9.649,138.48,138.44,3.17]
[1765322939710,3.15,138.47,138.44,3.17]
[1765322939909,6.499,138.48,138.44,3.17]
[1765322940206,3.15,138.48,138.44,3.17]
[1765322940512,3.15,138.48,138.45,3.21649395]
[1765322942198,33.15,138.5,138.45,3.21649395]
[1765322942403,30.0,138.5,138.45,3.21649395]
[1765322942714,30.0,138.5,138.47,3.17]
[1765322949410,30.0,138.5,138.47,9.669]
[1765322949609,30.0,138.5,138.48,3.17]
[1765322950210,30.0,138.5,138.49,3.32]
[1765322953010,30.0,138.5,138.49,9.8181]
[1765322953717,33.19,138.5,138.48,3.37221652]
[1765322954218,30.0,138.5,138.48,3.37221652]
[1765322955520,30.0,138.5,138.48,9.87071652]
[1765322956020,30.0,138.5,138.49,3.32]
[1765322956921,27.6829681,138.5,138.49,9.8181]
[1765322966327,24.43136603,138.5,138.49,9.8181]
[1765322980552,11.8815903,138.5,138.49,9.8181]
[1765322980748,9.03e-05,138.5,138.49,9.8181]
[1765322982439,9.03e-05,138.5,138.49,71.1981]
[1765322983249,9.03e-05,138.5,138.49,9.8181]
[1765322983552,9.03e-05,138.5,138.49,71.1981]
[1765322985250,3.2800903,138.5,138.49,67.8781]
[1765322986146,9.03e-05,138.5,138.49,70.9281]
[1765322991766,9.03e-05,138.5,138.49,67.8781]
[1765322992164,9.03e-05,138.5,138.49,70.9281]
[1765322994467,9.03e-05,138.5,138.48,0.05221652]
[1765322994768,9.03e-05,138.5,138.49,61.36]
[1765322995261,9.03e-05,138.5,138.49,70.9081]
[1765322995465,9.03e-05,138.5,138.49,67.8581]
[1765322996174,9.03e-05,138.5,138.49,70.9081]
[1765322998172,9.03e-05,138.5,138.49,67.8581]
[1765322999370,9.03e-05,138.5,138.49,71.1181]
[1765323001378,9.03e-05,138.5,138.49,67.8581]
[1765323002663,9.03e-05,138.5,138.49,71.1181]
[1765323004076,9.03e-05,138.5,138.49,67.8581]
[1765323008880,9.03e-05,138.5,138.49,61.36]
[1765323009965,4.6800903,138.5,138.49,61.36]
[1765323010479,3.24,138.49,138.45,3.18]
[1765323010673,3.24,138.49,138.46,61.36]
[1765323011377,3.24,138.49,138.46,64.54]
[1765323011568,3.29557491,138.49,138.46,0.05212354]
[1765323012578,9.79387491,138.49,138.46,0.05212354]
[1765323012778,3.24,138.48,138.46,0.05212354]
[1765323015180,3.24,138.46,138.44,61.36]
[1765323016283,3.24,138.44,138.37,3.18]
[1765323016491,3.24,138.43,138.38,64.56]
[1765323016983,3.24,138.45,138.39,3.18]
[1765323017388,0.04775865,138.43,138.42,3.18]
[1765323027504,9.78875865,138.43,138.41,0.05296304]
[1765323027687,3.24,138.42,138.41,0.05296304]
[1765323032898,3.04,138.41,138.36,3.05]
[1765323034000,3.04,138.39,138.37,0.05299652]
[1765323036899,3.04,138.38,138.31,6.5062]
[1765323037198,3.04,138.38,138.32,3.05]
[1765323037802,2.54916005,138.39,138.32,3.05]
[1765323037803,3.09411914,138.36,138.34,0.0471706]
[1765323038503,0.05411914,138.36,138.34,3.0971706]
[1765323038998,3.09411914,138.36,138.34,3.0971706]
[1765323046005,3.09411914,138.36,138.34,0.0471706]
[1765323046609,3.09411914,138.36,138.31,61.42]
[1765323046904,3.04,138.33,138.31,61.42]
[1765323047110,3.04,138.32,138.27,3.05]
[1765323047304,2.54916005,138.37,138.27,3.05]
[1765323047605,0.04912947,138.33,138.31,3.09650554]
[1765323047908,0.05290526,138.33,138.31,3.10457936]
[1765323049206,0.05290526,138.33,138.32,3.05]
[1765323049612,0.05290526,138.33,138.32,9.5561]
[1765323051528,5.58916005,138.39,138.32,3.05]
[1765323051712,3.04,138.39,138.34,3.05]
[1765323052711,6.5028,138.4,138.35,3.1016582]
[1765323052712,0.05152029,138.38,138.35,3.1016582]
[1765323054318,0.05152029,138.38,138.37,3.05]
[1765323060015,3.25,138.44,138.39,3.27]
[1765323061023,3.29589476,138.43,138.4,3.31725981]
[1765323061618,5.84505481,138.43,138.4,0.04725981]
[1765323061819,3.25,138.4,138.34,64.71]
[1765323062318,3.25,138.39,138.35,3.27]
[1765323062712,3.25,138.38,138.34,61.44]
[1765323063018,3.29645459,138.37,138.35,0.0508431]
[1765323063219,3.29645459,138.37,138.35,3.3208431]
[1765323063617,0.04645459,138.37,138.35,3.3208431]
[1765323074837,3.15,138.42,138.35,3.3208431]
[1765323075528,3.15,138.42,138.37,3.17]
[1765323075937,3.15,138.4,138.38,0.0533893]
[1765323081027,3.15,138.39,138.35,61.44]
[1765323081929,3.15,138.38,138.36,0.05127449]
[1765323082430,3.15,138.38,138.35,61.44]
[1765323082431,3.15,138.34,138.3,6.5066]
[1765323082826,3.15,138.34,138.28,64.61]
[1765323083034,3.15,138.33,138.3,6.507]
[1765323083332,3.2015572,138.33,138.3,6.56038446]
[1765323085037,3.2015572,138.33,138.3,0.05338446]
[1765323086533,9.7072572,138.33,138.3,0.05338446]
[1765323086836,3.15,138.32,138.3,0.05338446]
[1765323087527,9.6562,138.32,138.3,0.05338446]
[1765323087729,3.15,138.31,138.3,0.05338446]
[1765323088134,6.5062,138.32,138.3,0.05338446]
[1765323088437,9.6562,138.32,138.3,0.05338446]
[1765323088635,3.15,138.31,138.3,0.05338446]
[1765323094635,3.15,138.31,138.27,3.17]
[1765323094831,3.15,138.31,138.26,64.65]
[1765323095040,3.03,138.29,138.26,61.44]
[1765323095233,3.03,138.29,138.2,61.46]
[1765323095432,3.03,138.29,138.22,3.21]
[1765323095635,3.03,138.29,138.24,0.05251935]
[1765323095835,3.07869852,138.27,138.25,3.21]
[1765323096145,3.0832224,138.27,138.25,3.25591787]
[1765323097144,0.0532224,138.27,138.26,3.21]
[1765323098144,3.03,138.35,138.29,9.7174]
[1765323098441,3.03,138.35,138.29,3.21]
[1765323098635,3.03,138.35,138.27,3.21]
[1765323098835,3.03,138.33,138.29,3.21]
[1765323099237,3.0807271,138.32,138.3,0.046287]
[1765323100542,9.5868271,138.32,138.3,0.046287]
[1765323100849,3.03,138.31,138.3,0.046287]
[1765323101434,3.03,138.29,138.26,61.46]
[1765323101633,3.03,138.29,138.22,3.21]
[1765323102149,3.03,138.33,138.26,3.21]
[1765323102342,0.04675296,138.31,138.29,3.21]
[1765323103552,0.04675296,138.31,138.29,9.7174]
[1765323106149,0.04675296,138.31,138.29,3.21]
[1765323114054,6.55335296,138.31,138.29,3.21]
[1765323120057,0.04675296,138.31,138.29,3.21]
[1765323120852,16.02,138.36,138.29,3.21]
[1765323121253,16.02,138.36,138.33,3.02]
[1765323121454,16.02,138.36,138.35,3.02]
[1765323127554,16.02,138.36,138.35,9.5247]
[1765323129265,16.02,138.36,138.35,3.02]
[1765323129464,3.32,138.35,138.31,3.04]
[1765323129763,3.32,138.35,138.32,3.04]
[1765323130565,3.32,138.35,138.32,3.09456087]
[1765323132769,3.32,138.35,138.33,3.04]
[1765323134463,0.04870919,138.37,138.33,3.04]
[1765323135270,0.04870919,138.37,138.35,3.04]
[1765323136559,3.36870919,138.37,138.35,3.04]
[1765323140869,3.36870919,138.37,138.32,0.05456087]
[1765323141666,3.32,138.33,138.32,0.05456087]
[1765323142070,6.5061,138.32,138.27,9.5481]
[1765323142267,6.5061,138.32,138.28,3.04]
[1765323142268,3.32,138.31,138.28,3.04]
[1765323142468,3.32,138.35,138.28,3.04]
[1765323142875,3.32,138.34,138.31,3.04]
[1765323143073,3.36961108,138.34,138.31,3.09345945]
[1765323144483,3.36961108,138.34,138.32,3.04]
[1765323144683,0.04961108,138.34,138.32,3.04]
[1765323152288,3.30961108,138.34,138.31,3.30345945]
[1765323153293,9.81481108,138.34,138.31,3.30345945]
[1765323153988,3.26,138.32,138.31,0.05345945]